[Event "Balkan Youth Online-ch 2020"]
[Site "Online"]
[Date "2020.10.31"]
[Round "5.91"]
[White "Lupascu, Diana-Elena"]
[Black "Bucur, Denisa-Andreea"]
[Result "0-1"]
[ECO "A46"]
[WhiteElo "1668"]
[BlackElo "2063"]
[Annotator "ChessBase"]
[PlyCount "102"]
[EventDate "2020.10.31"]
[EventType "swiss"]
[SourceTitle "playchess.com"]
[Source "ChessBase"]
[SourceQuality "1"]
[TimeControl "1500+5"]

1. d4 {[%emt 0:00:00]} Nf6 {[%emt 0:00:00]} 2. Nf3 {[%emt 0:00:00]} e6 {[%emt 0:00:00]} 3. g3 {[%emt 0:00:00]} b5 {[%emt 0:00:00]} 4. Bg2 {[%emt 0:00:00]} Bb7 {[%emt 0:00:00]} 5. O-O {[%emt 0:00:00]} c5 {[%emt 0:00:00]} 6. a4 {[%emt 0:00:44]} b4 {[%emt 0:00:00]} 7. c4 {[%emt 0:00:30]} bxc3 {[%emt 0:00:16]} 8. Nxc3 {[%emt 0:00:58]} Be7 {[%emt 0:01:01]} 9. dxc5 {[%emt 0:00:35]} Bxc5 {[%emt 0:00:00]} 10. Qb3 {[%emt 0:00:45]} Bc6 {[%emt 0:01:02]} 11. Bf4 {[%emt 0:02:30]} O-O {[%emt 0:00:18]} 12. Rac1 {[%emt 0:02:14]} d6 {[%emt 0:02:05]} 13. Rfd1 {[%emt 0:01:54]} Qe7 {[%emt 0:01:14]} 14. Nb5 {[%emt 0:03:26]} Bd5 {[%emt 0:01:58]} 15. Qc2 {[%emt 0:02:45]} a6 {[%emt 0:01:32]} 16. Nc3 {[%emt 0:02:00]} Bb7 {[%emt 0:01:59]} 17. Qb1 {[%emt 0:02:05]} Nc6 {[%emt 0:02:06]} 18. a5 {[%emt 0:02:31]} Rab8 {[%emt 0:02:36]} 19. Na4 {[%emt 0:00:08]} Bb4 {[%emt 0:01:24]} 20. Qd3 {[%emt 0:01:25]} e5 {[%emt 0:00:51]} 21. Bg5 {[%emt 0:00:06]} e4 {[%emt 0:02:36]} 22. Bxf6 {[%emt 0:00:15]} gxf6 {[%emt 0:00:00]} 23. Qc4 {[%emt 0:00:48]} exf3 {[%emt 0:00:10]} 24. Bxf3 {[%emt 0:00:03]} Ne5 {[%emt 0:01:00]} 25. Qxb4 {[%emt 0:00:44]} Bxf3 {[%emt 0:00:00]} 26. Qxd6 {[%emt 0:00:19]} Qxd6 {[%emt 0:00:13]} 27. Rxd6 {[%emt 0:00:00]} Bxe2 {[%emt 0:00:07]} 28. Nc5 {[%emt 0:00:17]} Rfc8 {[%emt 0:01:34]} 29. Rxf6 {[%emt 0:00:10]} Nd7 {[%emt 0:00:26]} 30. Rf5 {[%emt 0:00:00]} Nxc5 {[%emt 0:00:22]} 31. Rfxc5 {[%emt 0:00:00]} Rxc5 {[%emt 0:00:00]} 32. Rxc5 {[%emt 0:00:00]} Rxb2 {[%emt 0:00:00]} 33. Rc8+ {[%emt 0:00:00]} Kg7 {[%emt 0:00:00]} 34. Kg2 {[%emt 0:00:06]} Bb5 {[%emt 0:00:00]} 35. Kf3 {[%emt 0:00:07]} Ra2 {[%emt 0:00:00]} 36. Ke3 {[%emt 0:00:08]} Rxa5 {[%emt 0:00:00]} 37. h4 {[%emt 0:00:00]} Ra3+ {[%emt 0:00:00]} 38. Kf4 {[%emt 0:00:00]} Be2 {[%emt 0:00:06]} 39. Kg5 {[%emt 0:00:09]} h6+ {[%emt 0:00:06]} 40. Kf4 {[%emt 0:00:17]} a5 {[%emt 0:00:14]} 41. g4 {[%emt 0:00:00]} Rf3+ {[%emt 0:00:15]} 42. Ke4 {[%emt 0:00:00]} Rxf2 {[%emt 0:00:16]} 43. Ke3 {[%emt 0:00:00]} Rg2 {[%emt 0:00:00]} 44. Rc2 {[%emt 0:00:04]} Bf1 {[%emt 0:00:00]} 45. Rc5 {[%emt 0:00:14]} a4 {[%emt 0:00:03]} 46. g5 {[%emt 0:00:07]} hxg5 {[%emt 0:00:12]} 47. hxg5 {[%emt 0:00:03]} a3 {[%emt 0:00:00]} 48. Kf3 {[%emt 0:00:13]} a2 {[%emt 0:00:14]} 49. Rc1 {[%emt 0:00:06]} Rb2 {[%emt 0:00:00]} 50. Ra1 {[%emt 0:00:01]} Bc4 {[%emt 0:00:00]} 51. Ke3 {[%emt 0:00:06]} Rb1 {[%emt 0:00:00]} 0-1

[Event "Balkan Youth Online-ch 2020"]
[Site "Online"]
[Date "2020.10.31"]
[Round "5.92"]
[White "Kalyva, Kyriaki"]
[Black "Bojovic, Neda"]
[Result "1-0"]
[ECO "D36"]
[WhiteElo "1823"]
[BlackElo "1316"]
[Annotator "NA"]
[PlyCount "93"]
[EventDate "2020.10.31"]
[EventType "swiss"]
[SourceTitle "playchess.com"]
[Source "ChessBase"]
[SourceQuality "1"]
[TimeControl "1500+5"]

1. d4 {[%emt 0:00:00]} d5 {[%emt 0:00:02]} 2. c4 {[%emt 0:00:00]} e6 {[%emt 0:00:00]} 3. Nc3 {[%emt 0:00:00]} Nf6 {[%emt 0:00:00]} 4. cxd5 {[%emt 0:00:00]} exd5 {[%emt 0:00:00]} 5. Bg5 {[%emt 0:00:00]} Be7 {[%emt 0:00:00]} 6. e3 {[%emt 0:00:00]} c6 {[%emt 0:00:00]} 7. Bd3 {[%emt 0:00:00]} Nbd7 {[%emt 0:00:00]} 8. Nf3 {[%emt 0:00:29]} O-O {[%emt 0:00:00]} 9. O-O {[%emt 0:00:00]} Re8 {[%emt 0:00:00]} 10. Qc2 {[%emt 0:00:00]} Nf8 {[%emt 0:00:00]} 11. Rab1 {[%emt 0:00:14]} a5 {[%emt 0:00:00]} 12. a3 {[%emt 0:00:08]} Ne4 {[%emt 0:00:55]} 13. Bxe7 {[%emt 0:01:15]} Qxe7 {[%emt 0:00:08]} 14. Nd2 {[%emt 0:00:37] D36: Queen's Gambit Declined: Exchange Variation: Main line (5 Bg5 c6 6 Qc2).} Bf5 {[%emt 0:01:55]} 15. b4 {[%emt 0:02:43] [#]} axb4 $146 {[%emt 0:01:40]} ({Predecessor:} 15... Ng6 16. Ne2 Nh4 17. Ng3 Qg5 18. f4 Qg6 19. Bxe4 dxe4 20. Nc4 axb4 21. axb4 Qe6 22. Rfc1 {0-1 (42) Macek,V (2242)-Repkova,E (2403) Sibenik 2008}) 16. axb4 {[%emt 0:00:00]} Ng6 {[%emt 0:00:30]} 17. b5 {[%emt 0:01:44]} Nh4 {[%emt 0:00:21]} 18. Bxe4 {[%emt 0:07:47]} dxe4 {[%emt 0:01:00]} 19. Ne2 {[%emt 0:00:13]} Rac8 $16 {[%emt 0:10:48]} 20. bxc6 {[%emt 0:05:44]} Rxc6 {[%emt 0:04:37]} 21. Qb2 {[%emt 0:01:15]} Rb8 {[%emt 0:00:12]} 22. Ng3 {[%emt 0:00:31]} b5 {[%emt 0:01:38]} 23. Rbc1 {[%emt 0:00:48]} Rcb6 {[%emt 0:00:04]} 24. Rc5 {[%emt 0:00:01]} Qd7 {[%emt 0:01:28]} 25. Ndxe4 {[%emt 0:00:54]} Bxe4 {[%emt 0:00:57]} 26. Nxe4 {[%emt 0:00:00]} Qb7 {[%emt 0:00:00]} 27. f3 {[%emt 0:00:05]} Rg6 {[%emt 0:00:03]} 28. Ng3 {[%emt 0:00:16]} Rc6 {[%emt 0:00:17]} 29. Rfc1 {[%emt 0:00:25]} Rbc8 {[%emt 0:00:27]} 30. Qb4 {[%emt 0:00:45]} Qa6 {[%emt 0:00:15]} 31. d5 {[%emt 0:00:52]} Rxc5 {[%emt 0:00:00]} 32. Rxc5 {[%emt 0:00:01]} Rxc5 {[%emt 0:00:00]} 33. Qxc5 {[%emt 0:00:00]} h6 {[%emt 0:00:00]} 34. d6 {[%emt 0:00:09]} Qa2 {[%emt 0:00:02]} 35. Qc8+ {[%emt 0:00:17]} Kh7 {[%emt 0:00:00]} 36. Qh3 {[%emt 0:00:00]} Qd2 {[%emt 0:00:26]} 37. Nf1 {[%emt 0:00:07]} Qxd6 {[%emt 0:00:05]} 38. Qxh4 {[%emt 0:00:00]} b4 {[%emt 0:00:00]} 39. Qe4+ {[%emt 0:00:00]} g6 {[%emt 0:00:00]} 40. Qc2 {[%emt 0:00:00]} Qb6 {[%emt 0:00:00]} 41. Kf2 {[%emt 0:00:00]} b3 {[%emt 0:00:00]} 42. Qb2 {[%emt 0:00:00]} Qb4 {[%emt 0:00:00]} 43. Nd2 {[%emt 0:00:00]} Qh4+ {[%emt 0:00:00]} 44. Ke2 {[%emt 0:00:12]} Qxh2 {[%emt 0:00:00]} 45. Qxb3 {[%emt 0:00:00]} Qxg2+ {[%emt 0:00:00]} 46. Kd3 {[%emt 0:00:00]} Qg5 {[%emt 0:00:00]} 47. Qxf7+ {[%emt 0:00:00]} 1-0

[Event "Balkan Youth Online-ch 2020"]
[Site "Online"]
[Date "2020.10.31"]
[Round "5.93"]
[White "Shqau, Olta"]
[Black "Eftovska, Lea"]
[Result "0-1"]
[ECO "E61"]
[WhiteElo "1373"]
[BlackElo "1587"]
[Annotator "NA"]
[PlyCount "82"]
[EventDate "2020.10.31"]
[EventType "swiss"]
[SourceTitle "playchess.com"]
[Source "ChessBase"]
[SourceQuality "1"]
[TimeControl "1500+5"]

1. d4 {[%emt 0:00:00]} Nf6 {[%emt 0:00:01]} 2. Nf3 {[%emt 0:00:11]} g6 {[%emt 0:00:00]} 3. c4 {[%emt 0:01:07]} d6 {[%emt 0:00:08]} 4. Nc3 {[%emt 0:00:02]} Bg7 {[%emt 0:00:00]} 5. Bf4 {[%emt 0:00:42]} O-O {[%emt 0:00:00]} 6. h3 {[%emt 0:00:01]} Nbd7 {[%emt 0:00:16]} 7. e3 {[%emt 0:00:39]} c6 {[%emt 0:00:14]} 8. Be2 {[%emt 0:00:38]} Re8 {[%emt 0:01:25]} 9. O-O {[%emt 0:00:29]} Qc7 {[%emt 0:00:59]} 10. Re1 {[%emt 0:01:18]} e5 {[%emt 0:00:02]} 11. dxe5 {[%emt 0:00:05]} dxe5 {[%emt 0:00:00]} 12. Bg3 {[%emt 0:00:06]} Nh5 {[%emt 0:01:20]} 13. Bh2 {[%emt 0:00:12]} Qb6 {[%emt 0:02:22]} 14. Qc2 {[%emt 0:00:41]} f5 {[%emt 0:00:54]} 15. Rad1 {[%emt 0:02:01]} Nhf6 {[%emt 0:03:32]} 16. Na4 {[%emt 0:02:15]} Qb4 {[%emt 0:02:36]} 17. a3 {[%emt 0:00:19]} Qe7 {[%emt 0:00:23]} 18. b4 {[%emt 0:00:56]} Ne4 {[%emt 0:00:48]} 19. Nd2 {[%emt 0:01:49]} Ndf6 {[%emt 0:02:16]} 20. Nc3 {[%emt 0:00:34]} Nxc3 {[%emt 0:00:49]} 21. Qxc3 {[%emt 0:00:04]} e4 {[%emt 0:01:45]} 22. c5 {[%emt 0:00:41]} Nd5 {[%emt 0:00:53]} 23. Qc4 {[%emt 0:01:52]} Be6 {[%emt 0:00:03]} 24. Bd6 {[%emt 0:00:04]} Qf7 {[%emt 0:00:00]} 25. Qc2 {[%emt 0:00:35]} Nc3 {[%emt 0:00:41]} 26. Rc1 {[%emt 0:00:53]} Rad8 {[%emt 0:00:23]} 27. Nb1 {[%emt 0:00:35]} Bb3 {[%emt 0:02:11]} 28. Qd2 {[%emt 0:00:36]} Nxe2+ {[%emt 0:00:00]} 29. Qxe2 {[%emt 0:00:12]} Be5 {[%emt 0:00:13]} 30. Qd2 {[%emt 0:02:55]} Bxd6 {[%emt 0:00:08]} 31. cxd6 {[%emt 0:00:00]} Bd5 {[%emt 0:00:00]} 32. Qd4 {[%emt 0:00:27]} Rxd6 {[%emt 0:00:12]} 33. Qxa7 {[%emt 0:00:11]} Red8 {[%emt 0:00:26]} 34. Qc5 {[%emt 0:00:35]} R6d7 {[%emt 0:00:14]} 35. Nc3 {[%emt 0:00:44]} Bb3 {[%emt 0:00:19]} 36. Kh2 {[%emt 0:01:50]} Rd2 {[%emt 0:00:25]} 37. Re2 {[%emt 0:00:13]} Qc7+ {[%emt 0:00:12]} 38. g3 {[%emt 0:00:06]} b6 {[%emt 0:00:00]} 39. Rxd2 {[%emt 0:01:17]} bxc5 {[%emt 0:00:36]} 40. Rxd8+ {[%emt 0:00:00]} Qxd8 {[%emt 0:00:00]} 41. bxc5 {[%emt 0:00:01]} Qd2 {[%emt 0:00:00]} 0-1

[Event "Balkan Youth Online-ch 2020"]
[Site "Online"]
[Date "2020.10.31"]
[Round "5.94"]
[White "Yilmaz, Duygu Sila"]
[Black "Zeycan, Alara"]
[Result "0-1"]
[ECO "C54"]
[WhiteElo "1408"]
[BlackElo "1230"]
[Annotator "NA"]
[PlyCount "62"]
[EventDate "2020.10.31"]
[EventType "swiss"]
[SourceTitle "playchess.com"]
[Source "ChessBase"]
[SourceQuality "1"]
[TimeControl "1500+5"]

1. e4 {[%emt 0:00:00]} e5 {[%emt 0:00:00]} 2. Nf3 {[%emt 0:00:00]} Nc6 {[%emt 0:00:00]} 3. Bc4 {[%emt 0:00:00]} Bc5 {[%emt 0:00:02]} 4. c3 {[%emt 0:00:00]} d6 {[%emt 0:00:06]} 5. d3 {[%emt 0:00:00]} Nf6 {[%emt 0:00:03]} 6. Nbd2 {[%emt 0:00:17]} Bg4 {[%emt 0:00:10]} 7. h3 {[%emt 0:00:00]} Bh5 {[%emt 0:00:00]} 8. O-O {[%emt 0:01:22]} O-O {[%emt 0:00:00]} 9. Re1 {[%emt 0:01:12]} Ne7 {[%emt 0:00:23]} 10. g4 {[%emt 0:02:11]} Bg6 {[%emt 0:00:16]} 11. Nf1 {[%emt 0:00:23]} c6 {[%emt 0:00:00]} 12. Bb3 {[%emt 0:00:21]} Qb6 {[%emt 0:00:04]} 13. Qe2 {[%emt 0:01:59]} Rae8 {[%emt 0:00:33]} 14. Ng3 {[%emt 0:03:19]} h6 {[%emt 0:02:06]} 15. Rd1 {[%emt 0:04:57]} Qc7 {[%emt 0:03:03]} 16. d4 {[%emt 0:03:54]} exd4 {[%emt 0:00:10]} 17. cxd4 {[%emt 0:00:00]} Bb6 {[%emt 0:00:00]} 18. Bf4 {[%emt 0:02:08]} Ned5 {[%emt 0:04:27]} 19. Bxd5 {[%emt 0:03:04]} Nxd5 {[%emt 0:00:04]} 20. Bd2 {[%emt 0:00:54]} Re6 {[%emt 0:03:16]} 21. Qd3 {[%emt 0:00:31]} Nf6 {[%emt 0:00:23]} 22. Re1 {[%emt 0:00:00]} Rfe8 {[%emt 0:00:20]} 23. Rac1 {[%emt 0:00:05]} Nxe4 {[%emt 0:01:08]} 24. Qc4 {[%emt 0:00:07]} d5 {[%emt 0:00:35]} 25. Qb4 {[%emt 0:00:03]} Ba5 {[%emt 0:00:15]} 26. Qxa5 {[%emt 0:00:00]} b6 {[%emt 0:00:40]} 27. Qb4 {[%emt 0:00:13]} Nxg3 {[%emt 0:00:04]} 28. fxg3 {[%emt 0:00:00]} Qxg3+ {[%emt 0:00:00]} 29. Kf1 {[%emt 0:00:07]} Qxf3+ {[%emt 0:00:00]} 30. Kg1 {[%emt 0:00:00]} Qg3+ {[%emt 0:00:00]} 31. Kf1 {[%emt 0:00:00]} Bd3+ {[%emt 0:00:00]} 0-1

[Event "Balkan Youth Online-ch 2020"]
[Site "Online"]
[Date "2020.10.31"]
[Round "6.2"]
[White "Lafkidis, Apostolos"]
[Black "Sevig, Mert Can"]
[Result "1-0"]
[ECO "A31"]
[WhiteElo "1497"]
[BlackElo "1472"]
[Annotator "NA RC"]
[PlyCount "185"]
[EventDate "2020.10.31"]
[EventType "swiss"]
[SourceTitle "playchess.com"]
[Source "ChessBase"]
[SourceQuality "1"]
[TimeControl "1500+5"]

1. e4 {[%emt 0:00:00]} c5 {[%emt 0:00:00]} 2. Nf3 {[%emt 0:00:00]} d6 {[%emt 0:00:00]} 3. d4 {[%emt 0:00:00]} cxd4 {[%emt 0:00:00]} 4. Nxd4 {[%emt 0:00:00]} Nf6 {[%emt 0:00:00]} 5. f3 {[%emt 0:00:00]} a6 {[%emt 0:00:00]} 6. c4 {[%emt 0:00:00]} e6 {[%emt 0:00:00]} 7. Nc3 {[%emt 0:00:00]} Be7 {[%emt 0:00:00]} 8. Be3 {[%emt 0:00:00]} O-O {[%emt 0:00:03]} 9. Be2 {[%emt 0:00:00]} Nbd7 {[%emt 0:00:52]} 10. O-O {[%emt 0:00:00]} Qc7 {[%emt 0:00:20]} 11. Qd2 {[%emt 0:00:00]} b6 {[%emt 0:00:17]} 12. Rfd1 {[%emt 0:00:00]} Bb7 {[%emt 0:00:32]} 13. Rac1 {[%emt 0:00:00]} Rac8 {[%emt 0:01:26]} 14. b3 {[%emt 0:00:00]} Rfd8 {[%emt 0:00:34]} 15. Bf1 {[%emt 0:02:16]} Ne5 {[%emt 0:04:22]} 16. Qf2 {[%emt 0:00:48]} Qd7 {[%emt 0:01:48]} 17. Nde2 {[%emt 0:00:46]} b5 {[%emt 0:00:23]} 18. cxb5 {[%emt 0:01:02]} axb5 {[%emt 0:00:00]} 19. Nd4 {[%emt 0:00:18]} b4 {[%emt 0:01:24]} 20. Bb5 {[%emt 0:00:45]} Bc6 {[%emt 0:00:25]} 21. Bxc6 {[%emt 0:00:08]} Nxc6 {[%emt 0:00:10]} 22. Na4 {[%emt 0:01:18]} Qb7 {[%emt 0:01:05]} 23. Nxc6 {[%emt 0:00:45]} Rxc6 {[%emt 0:00:03]} 24. Rxc6 {[%emt 0:00:00]} Qxc6 {[%emt 0:00:00]} 25. Rc1 {[%emt 0:00:03]} Qb7 {[%emt 0:00:38]} 26. Qc2 {[%emt 0:00:26]} Ne8 {[%emt 0:02:15]} 27. Bb6 {[%emt 0:00:37]} Ra8 {[%emt 0:00:13]} 28. Qc6 {[%emt 0:01:32]} Qxc6 {[%emt 0:00:42]} 29. Rxc6 {[%emt 0:00:00]} Kf8 {[%emt 0:00:04]} 30. Kf2 {[%emt 0:00:26]} Bf6 {[%emt 0:00:53]} 31. Ke3 {[%emt 0:00:24]} Ke7 {[%emt 0:00:06]} 32. g3 {[%emt 0:00:50]} Kd7 {[%emt 0:00:25]} 33. Rc2 {[%emt 0:00:53]} Bc3 {[%emt 0:00:54]} 34. Nxc3 {[%emt 0:00:58]} bxc3 {[%emt 0:00:00]} 35. Bd4 {[%emt 0:00:19]} e5 {[%emt 0:00:26]} 36. Bxc3 {[%emt 0:00:01]} Nc7 {[%emt 0:00:00]} 37. Rd2 {[%emt 0:00:55]} Nb5 {[%emt 0:00:12]} 38. Bxe5 {[%emt 0:00:35]} f6 {[%emt 0:00:00]} 39. Ba1 {[%emt 0:00:18]} Ra3 {[%emt 0:00:36]} 40. f4 {[%emt 0:00:27]} Ke6 {[%emt 0:00:14]} 41. Bd4 {[%emt 0:00:39]} g6 {[%emt 0:00:22]} 42. g4 {[%emt 0:00:25]} f5 {[%emt 0:00:18]} 43. gxf5+ {[%emt 0:00:44]} gxf5 {[%emt 0:00:00]} 44. Rc2 {[%emt 0:01:12]} h5 {[%emt 0:00:27]} 45. e5 {[%emt 0:00:41]} Ra6 {[%emt 0:02:21]} 46. exd6 {[%emt 0:02:39]} Nxd6 {[%emt 0:00:34]} 47. Be5 {[%emt 0:00:10]} Ne4 {[%emt 0:01:20]} 48. b4 {[%emt 0:01:25]} Kd5 {[%emt 0:01:01]} 49. Kd3 {[%emt 0:01:40]} Ra3+ {[%emt 0:00:42]} 50. Bc3 {[%emt 0:00:00]} h4 {[%emt 0:00:07]} 51. b5 {[%emt 0:00:49]} Kc5 {[%emt 0:00:12]} 52. b6 {[%emt 0:00:01]} Kxb6 {[%emt 0:00:11]} 53. Kd4 {[%emt 0:00:00]} Nxc3 {[%emt 0:00:00]} 54. Rxc3 {[%emt 0:00:00]} Rxa2 {[%emt 0:00:00]} 55. Rh3 {[%emt 0:00:00]} Kc6 {[%emt 0:00:22]} 56. Ke5 {[%emt 0:00:53]} Ra5+ {[%emt 0:00:03]} 57. Ke6 {[%emt 0:00:01]} Kc5 {[%emt 0:00:11]} 58. Kxf5 {[%emt 0:00:02]} Kd4+ {[%emt 0:00:00]} 59. Kg4 {[%emt 0:00:05]} Ke4 {[%emt 0:00:00]} 60. Rxh4 {[%emt 0:01:13]} Ra8 {[%emt 0:00:04]} 61. Rh5 {[%emt 0:00:04]} Ra2 {[%emt 0:00:14]} 62. Re5+ {[%emt 0:00:07]} Kd4 {[%emt 0:00:00]} 63. h4 {[%emt 0:00:17]} Rg2+ {[%emt 0:00:01]} 64. Kf5 {[%emt 0:00:01]} Rh2 {[%emt 0:00:01]} 65. Re8 {[%emt 0:00:08]} Rxh4 {[%emt 0:00:06]} 66. Kg5 {[%emt 0:00:00]} Rh1 {[%emt 0:00:00]} 67. f5 {[%emt 0:00:00]} Kd5 {[%emt 0:00:15]} 68. f6 {[%emt 0:00:00]} Rg1+ {[%emt 0:00:01]} 69. Kh6 {[%emt 0:00:00]} Rh1+ {[%emt 0:00:00]} 70. Kg7 {[%emt 0:00:00]} Rg1+ {[%emt 0:00:00]} 71. Kf7 {[%emt 0:00:00]} Kd6 {[%emt 0:00:00]} 72. Rd8+ {[%emt 0:00:00]} Kc7 {[%emt 0:00:00]} 73. Rd3 {[%emt 0:00:00]} Rf1 {[%emt 0:00:00]} 74. Kg7 {[%emt 0:00:00]} Rg1+ {[%emt 0:00:00]} 75. Kf8 {[%emt 0:00:00]} Rf1 {[%emt 0:00:00]} 76. f7 {[%emt 0:00:00]} Rg1 {[%emt 0:00:00]} 77. Rd4 {[%emt 0:00:05]} Rg2 {[%emt 0:00:04]} 78. Ke7 {[%emt 0:00:07]} Re2+ {[%emt 0:00:01]} 79. Kf6 {[%emt 0:00:00]} Rf2+ {[%emt 0:00:00]} 80. Kg6 {[%emt 0:00:00]} Rg2+ {[%emt 0:00:09]} 81. Kf5 {[%emt 0:00:00]} Rf2+ {[%emt 0:00:06]} 82. Rf4 {[%emt 0:00:00]} Rxf4+ {[%emt 0:00:00]} 83. Kxf4 {[%emt 0:00:00]} Kd7 {[%emt 0:00:00]} 84. f8=Q {[%emt 0:00:00]} Ke6 {[%emt 0:00:00]} 85. Qf5+ {[%emt 0:00:00]} Kd6 {[%emt 0:00:00]} 86. Ke4 {[%emt 0:00:00]} Kc6 {[%emt 0:00:00]} 87. Kd4 {[%emt 0:00:00]} Kd6 {[%emt 0:00:00]} 88. Qf6+ {[%emt 0:00:00]} Kd7 {[%emt 0:00:00]} 89. Kd5 {[%emt 0:00:00]} Kc7 {[%emt 0:00:00]} 90. Qc6+ {[%emt 0:00:00]} Kd8 {[%emt 0:00:00]} 91. Qb7 {[%emt 0:00:00]} Ke8 {[%emt 0:00:00]} 92. Ke6 {[%emt 0:00:00]} Kf8 {[%emt 0:00:00]} 93. Qf7# {[%emt 0:00:00]} 1-0

[Event "Balkan Youth Online-ch 2020"]
[Site "Online"]
[Date "2020.10.31"]
[Round "6.5"]
[White "Palaiologou, Apostolos"]
[Black "Domurcak, Doruk"]
[Result "0-1"]
[ECO "C56"]
[WhiteElo "1410"]
[BlackElo "1244"]
[Annotator "NA RC"]
[PlyCount "30"]
[EventDate "2020.10.31"]
[EventType "swiss"]
[SourceTitle "playchess.com"]
[Source "ChessBase"]
[SourceQuality "1"]
[TimeControl "1500+5"]

1. e4 {[%emt 0:00:00]} e5 {[%emt 0:00:00]} 2. Nf3 {[%emt 0:00:00]} Nc6 {[%emt 0:00:00]} 3. d4 {[%emt 0:00:00]} exd4 {[%emt 0:00:00]} 4. Bc4 {[%emt 0:00:00]} Nf6 {[%emt 0:00:00]} 5. e5 {[%emt 0:00:00]} d5 {[%emt 0:00:00]} 6. Bb5 {[%emt 0:00:00]} Ne4 {[%emt 0:00:00]} 7. Bxc6+ {[%emt 0:00:10]} bxc6 {[%emt 0:00:00]} 8. Nxd4 {[%emt 0:00:00]} Bc5 {[%emt 0:00:00]} 9. Be3 {[%emt 0:00:02]} Bd7 {[%emt 0:00:00]} 10. Nxc6 {[%emt 0:00:32]} Bxc6 {[%emt 0:00:18]} 11. Bxc5 {[%emt 0:00:00]} Nxc5 {[%emt 0:00:06]} 12. Qd4 {[%emt 0:00:10]} Ne6 {[%emt 0:00:09]} 13. Qg4 {[%emt 0:00:07]} Qg5 {[%emt 0:01:00]} 14. Qe2 {[%emt 0:00:09]} Nd4 {[%emt 0:01:23]} 15. Qd3 {[%emt 0:00:18]} Qc1+ {[%emt 0:00:09]} 0-1

[Event "Balkan Youth Online-ch 2020"]
[Site "Online"]
[Date "2020.10.31"]
[Round "6.6"]
[White "Smirnov, Maksim"]
[Black "Kovacec, Tilen"]
[Result "1/2-1/2"]
[ECO "A48"]
[WhiteElo "1139"]
[BlackElo "1183"]
[Annotator "NA RC"]
[PlyCount "115"]
[EventDate "2020.10.31"]
[EventType "swiss"]
[SourceTitle "playchess.com"]
[Source "ChessBase"]
[SourceQuality "1"]
[TimeControl "1500+5"]

1. d4 {[%emt 0:00:00]} Nf6 {[%emt 0:00:01]} 2. Bf4 {[%emt 0:00:00]} g6 {[%emt 0:00:04]} 3. e3 {[%emt 0:00:00]} Bg7 {[%emt 0:00:08]} 4. Nf3 {[%emt 0:00:00]} O-O {[%emt 0:00:01]} 5. c3 {[%emt 0:00:00]} d5 {[%emt 0:00:37]} 6. Be2 {[%emt 0:00:00]} c5 {[%emt 0:00:17]} 7. O-O {[%emt 0:00:00]} cxd4 {[%emt 0:00:02]} 8. exd4 {[%emt 0:00:00]} Nc6 {[%emt 0:00:01]} 9. Bd3 {[%emt 0:00:00]} Bd7 {[%emt 0:00:49]} 10. Nbd2 {[%emt 0:00:18]} Rc8 {[%emt 0:00:17]} 11. Re1 {[%emt 0:00:00]} a6 {[%emt 0:02:22]} 12. Ne5 {[%emt 0:00:00]} Nxe5 {[%emt 0:00:56]} 13. Bxe5 {[%emt 0:00:13]} Ne8 {[%emt 0:00:46]} 14. Bxg7 {[%emt 0:00:00]} Kxg7 {[%emt 0:00:02]} 15. Nf3 {[%emt 0:00:00]} Bg4 {[%emt 0:00:33]} 16. h3 {[%emt 0:00:00]} Bxf3 {[%emt 0:00:11]} 17. Qxf3 {[%emt 0:00:00]} Nf6 {[%emt 0:00:00]} 18. Qe3 {[%emt 0:00:00]} e6 {[%emt 0:00:00]} 19. Qe5 {[%emt 0:00:00]} Qc7 {[%emt 0:00:09]} 20. Qe3 {[%emt 0:00:00]} Nd7 {[%emt 0:00:31]} 21. Rac1 {[%emt 0:00:00]} Qb6 {[%emt 0:00:06]} 22. Rb1 {[%emt 0:00:04]} Rc6 {[%emt 0:00:06]} 23. Qg5 {[%emt 0:00:07]} Qd8 {[%emt 0:00:08]} 24. Qf4 {[%emt 0:00:01]} Qf6 {[%emt 0:00:09]} 25. Qg3 {[%emt 0:00:06]} Rfc8 {[%emt 0:00:08]} 26. Qg4 {[%emt 0:01:21]} b5 {[%emt 0:00:17]} 27. a3 {[%emt 0:00:03]} Nb6 {[%emt 0:00:30]} 28. Qg3 {[%emt 0:00:00]} Nc4 {[%emt 0:00:09]} 29. Bxc4 {[%emt 0:00:13]} Rxc4 {[%emt 0:00:11]} 30. Qd6 {[%emt 0:00:00]} R4c6 {[%emt 0:00:04]} 31. Qg3 {[%emt 0:00:00]} Qe7 {[%emt 0:00:02]} 32. Qe5+ {[%emt 0:00:00]} Qf6 {[%emt 0:00:00]} 33. Qg3 {[%emt 0:00:00]} a5 {[%emt 0:00:16]} 34. Qd3 {[%emt 0:00:19]} Rb8 {[%emt 0:00:42]} 35. Rec1 {[%emt 0:00:08]} b4 {[%emt 0:00:10]} 36. cxb4 {[%emt 0:00:00]} Rxc1+ {[%emt 0:00:00]} 37. Rxc1 {[%emt 0:00:00]} axb4 {[%emt 0:00:00]} 38. axb4 {[%emt 0:00:00]} Rxb4 {[%emt 0:00:00]} 39. Qa3 {[%emt 0:00:00]} Qxd4 {[%emt 0:00:00]} 40. b3 {[%emt 0:00:06]} Qb6 {[%emt 0:00:24]} 41. Rb1 {[%emt 0:00:05]} e5 {[%emt 0:00:24]} 42. Qb2 {[%emt 0:00:00]} d4 {[%emt 0:00:02]} 43. Qe2 {[%emt 0:00:03]} Qb5 {[%emt 0:00:08]} 44. Qe4 {[%emt 0:00:03]} d3 {[%emt 0:00:25]} 45. Qe1 {[%emt 0:00:01]} e4 {[%emt 0:00:13]} 46. Qc3+ {[%emt 0:00:00]} Kf8 {[%emt 0:00:32]} 47. Qc8+ {[%emt 0:00:09]} Ke7 {[%emt 0:00:00]} 48. Qc7+ {[%emt 0:00:00]} Qd7 {[%emt 0:00:00]} 49. Qc5+ {[%emt 0:00:00]} Qd6 {[%emt 0:00:00]} 50. Qg5+ {[%emt 0:00:00]} f6 {[%emt 0:00:04]} 51. Qh6 {[%emt 0:00:03]} d2 {[%emt 0:00:09]} 52. Qxh7+ {[%emt 0:00:00]} Ke6 {[%emt 0:00:00]} 53. Qg8+ {[%emt 0:00:00]} Kf5 {[%emt 0:00:07]} 54. Rd1 {[%emt 0:00:02]} Rd4 {[%emt 0:00:43]} 55. g4+ {[%emt 0:00:04]} Kg5 {[%emt 0:00:24]} 56. h4+ {[%emt 0:00:28]} Kxg4 {[%emt 0:00:37]} 57. Qxg6+ {[%emt 0:00:00]} Kxh4 {[%emt 0:00:15]} 58. Kg2 {[%emt 0:00:00]} 1/2-1/2